fUSD/lending_fUSD_20250219
["ID","MTS","AMOUNT","RATE_DAILY","PERIOD"]
[353648849,1739981454888,-500.0,0.00013333,2]
[353648850,1739981454897,-613.79,0.00013333,2]
[353648851,1739981454907,-500.0,0.00013333,2]
[353648852,1739981454917,-500.0,0.00013333,2]
[353648853,1739981454927,-500.0,0.00013333,2]
[353648854,1739981454937,-500.0,0.00013333,2]
[353648855,1739981454947,-500.0,0.00013333,2]
[353648856,1739981454957,-500.0,0.00013333,2]
[353648857,1739981454967,-835.95,0.00013333,2]
[353648858,1739981454977,-500.0,0.00013333,2]
[353648859,1739981454987,-500.0,0.00013333,2]
[353648860,1739981454997,-727.59,0.00013333,2]
[353648861,1739981455007,-500.0,0.00013333,2]
[353648862,1739981455018,-500.0,0.00013333,2]
[353648863,1739981455028,-1297.65,0.00013333,2]
[353648864,1739981455038,-500.0,0.00013333,2]
[353648865,1739981455049,-500.0,0.00013333,2]
[353648866,1739981455059,-500.0,0.00013333,2]
[353648867,1739981455072,-500.0,0.00013333,2]
[353648868,1739981455083,-500.0,0.00013333,2]
[353648869,1739981455094,-500.0,0.00013333,2]
[353648870,1739981455104,-500.0,0.00013333,2]
[353648871,1739981455114,-500.0,0.00013333,2]
[353648872,1739981455125,-1049.75,0.00013333,2]
[353648873,1739981455135,-329.81718969,0.00013333,2]
[353648874,1739981455144,-500.0,0.00013333,2]
[353648875,1739981455155,-1342.98,0.00013333,2]
[353648876,1739981455166,-500.0,0.00013333,2]
[353648877,1739981455176,-500.0,0.00013333,2]
[353648878,1739981455186,-867.0,0.00013333,2]
[353648879,1739981455196,-719.27,0.00013333,2]
[353648880,1739981455206,-1030.03,0.00013333,2]
[353648881,1739981455216,-548.74,0.00013333,2]
[353648882,1739981455227,-500.0,0.00013333,2]
[353648883,1739981455237,-1391.91,0.00013333,2]
[353648884,1739981455247,-500.0,0.00013333,2]
[353648885,1739981455259,-500.0,0.00013333,2]
[353648886,1739981455270,-500.0,0.00013333,2]
[353648887,1739981455280,-591.81,0.00013333,2]
[353648888,1739981455290,-680.74,0.00013333,2]
[353648889,1739981455301,-500.0,0.00013333,2]
[353648890,1739981455311,-500.0,0.00013333,2]
[353648891,1739981455324,-500.0,0.00013333,2]
[353648892,1739981455333,-500.0,0.00013333,2]
[353648893,1739981455343,-500.0,0.00013333,2]
[353648894,1739981455354,-605.62,0.00013333,2]
[353648895,1739981455364,-719.0,0.00013333,2]
[353648896,1739981455374,-500.0,0.00013333,2]
[353648897,1739981455383,-500.0,0.00013333,2]
[353648898,1739981455393,-437.77399959,0.00013333,2]
[353648899,1739981455403,-851.56,0.00013333,2]
[353648900,1739981455414,-858.88,0.00013333,2]
[353648901,1739981455424,-500.0,0.00013333,2]
[353648902,1739981455433,-500.0,0.00013333,2]
[353648903,1739981455443,-614.55,0.00013333,2]
[353648904,1739981455452,-216.99954789,0.00013333,2]
[353648905,1739981455462,-525.51,0.00013333,2]
[353648906,1739981455472,-594.60281116,0.00013333,2]
[353648907,1739981455482,-521.03746183,0.00013333,2]
[353648908,1739981455492,-500.0,0.00013333,2]
[353648909,1739981455503,-500.0,0.00013333,2]
[353648910,1739981455513,-969.29,0.00013333,2]
[353648911,1739981455523,-500.0,0.00013333,2]
[353648912,1739981455533,-500.0,0.00013333,2]
[353648913,1739981455543,-578.62,0.00013333,2]
[353648914,1739981455554,-500.0,0.00013333,2]
[353648915,1739981455565,-684.04,0.00013333,2]
[353648916,1739981455575,-659.34,0.00013333,2]
[353648917,1739981455585,-500.0,0.00013333,2]
[353648918,1739981455596,-814.31,0.00013333,2]
[353648919,1739981455607,-500.0,0.00013333,2]
[353648920,1739981455617,-573.2,0.00013333,2]
[353648921,1739981455627,-500.0,0.00013333,2]
[353648922,1739981455638,-500.0,0.00013333,2]
[353648923,1739981455649,-1087.37,0.00013333,2]
[353648924,1739981455659,-847.22,0.00013333,2]
[353648925,1739981455670,-500.0,0.00013333,2]
[353648926,1739981455680,-500.0,0.00013333,2]
[353648927,1739981455690,-1103.2,0.00013333,2]
[353648928,1739981455700,-953.51,0.00013333,2]
[353648929,1739981455710,-500.0,0.00013333,2]
[353648930,1739981455719,-500.0,0.00013333,2]
[353648931,1739981455729,-500.0,0.00013333,2]
[353648932,1739981455739,-500.0,0.00013333,2]
[353648933,1739981455752,-757.2,0.00013333,2]
[353648934,1739981455764,-1161.96,0.00013333,2]
[353648935,1739981455776,-500.0,0.00013333,2]
[353648936,1739981455786,-1434.63,0.00013333,2]
[353648937,1739981455993,-500.0,0.00013333,2]
[353648938,1739981456027,-500.0,0.00013333,2]
[353648939,1739981456037,-500.0,0.00013333,2]
[353648940,1739981456047,-500.0,0.00013333,2]
[353648941,1739981456057,-500.0,0.00013333,2]
[353648942,1739981456067,-721.96,0.00013333,2]
[353648943,1739981456077,-500.0,0.00013333,2]
[353648944,1739981456086,-500.0,0.00013333,2]
[353648945,1739981456096,-500.0,0.00013333,2]
[353648946,1739981456106,-500.0,0.00013333,2]
[353648947,1739981456115,-500.0,0.00013333,2]
[353648948,1739981456125,-500.0,0.00013333,2]
[353648949,1739981456134,-500.0,0.00013333,2]
[353648950,1739981456144,-225.74857166,0.00013333,2]
[353648951,1739981456154,-500.0,0.00013333,2]
[353648952,1739981456164,-500.0,0.00013333,2]
[353648953,1739981456175,-500.0,0.00013333,2]
[353648954,1739981456185,-593.41,0.00013333,2]
[353648955,1739981456195,-259.34239868,0.00013333,2]
[353648956,1739981456206,-500.0,0.00013333,2]
[353648957,1739981456216,-500.0,0.00013333,2]
[353648958,1739981456228,-500.0,0.00013333,2]
[353648959,1739981456238,-500.0,0.00013333,2]
[353648960,1739981456247,-500.0,0.00013333,2]
[353648961,1739981456258,-500.0,0.00013333,2]
[353648962,1739981456268,-632.83483561,0.00013333,2]
[353648963,1739981456277,-500.0,0.00013333,2]
[353648964,1739981456287,-500.0,0.00013333,2]
[353648965,1739981456298,-514.55,0.00013333,2]
[353648966,1739981456308,-500.0,0.00013333,2]
[353648967,1739981456318,-500.0,0.00013333,2]
[353648968,1739981456328,-658.19,0.00013333,2]
[353648969,1739981456338,-151.0,0.00013333,2]
[353648970,1739981456349,-500.0,0.00013333,2]
[353648971,1739981456359,-500.0,0.00013333,2]
[353648972,1739981456370,-500.0,0.00013333,2]
[353648973,1739981456380,-500.0,0.00013333,2]
[353648974,1739981456392,-482.13943824,0.00013333,2]
[353648975,1739981456403,-500.0,0.00013333,2]
[353648976,1739981456415,-500.0,0.00013333,2]
[353648977,1739981456426,-500.0,0.00013333,2]
[353648978,1739981456439,-151.0,0.00013333,2]
[353648979,1739981456450,-907.8,0.00013333,2]
[353648980,1739981456459,-500.0,0.00013333,2]
[353648981,1739981456468,-500.0,0.00013333,2]
[353648982,1739981456477,-500.0,0.00013333,2]
[353648983,1739981456487,-500.0,0.00013333,2]
[353648984,1739981456497,-401.59720104,0.00013333,2]
[353648985,1739981456506,-500.0,0.00013333,2]
[353648986,1739981456516,-500.0,0.00013333,2]
[353648987,1739981456525,-500.0,0.00013333,2]
[353648988,1739981456535,-500.0,0.00013333,2]
[353648989,1739981456545,-518.56,0.00013333,2]
[353648990,1739981456554,-842.91,0.00013333,2]
[353648991,1739981456563,-500.0,0.00013333,2]
[353648992,1739981456574,-210.560938,0.00013333,2]
[353648993,1739981456584,-910.58,0.00013333,2]
[353648994,1739981456594,-500.0,0.00013333,2]
[353648995,1739981456603,-529.0354053,0.00013333,2]
[353648996,1739981456613,-500.0,0.00013333,2]
[353648997,1739981456622,-500.0,0.00013333,2]
[353648998,1739981456632,-502.64870772,0.00013333,2]
[353648999,1739981456641,-500.0,0.00013333,2]
[353649000,1739981456651,-500.0,0.00013333,2]
[353649001,1739981456660,-500.0,0.00013333,2]
[353649002,1739981456670,-1700.48,0.00013333,2]
[353649003,1739981456679,-500.0,0.00013333,2]
[353649004,1739981456689,-500.0,0.00013333,2]
[353649005,1739981456699,-500.0,0.00013333,2]
[353649006,1739981456708,-500.0,0.00013333,2]
[353649007,1739981456717,-1467.07,0.00013333,2]
[353649008,1739981456727,-151.552059,0.00013333,2]
[353649009,1739981456737,-654.58,0.00013333,2]
[353649010,1739981456746,-500.0,0.00013333,2]
[353649011,1739981456756,-846.23,0.00013333,2]
[353649012,1739981456767,-500.0,0.00013333,2]
[353649013,1739981456776,-500.0,0.00013333,2]
[353649014,1739981456785,-508.72,0.00013333,2]
[353649015,1739981456795,-500.0,0.00013333,2]
[353649016,1739981456805,-500.0,0.00013333,2]
[353649017,1739981456814,-886.41,0.00013333,2]
[353649018,1739981456824,-500.0,0.00013333,2]
[353649019,1739981456833,-500.0,0.00013333,2]
[353649020,1739981456843,-500.0,0.00013333,2]
[353649021,1739981456852,-500.0,0.00013333,2]
[353649022,1739981456862,-500.0,0.00013333,2]
[353649023,1739981456871,-500.0,0.00013333,2]
[353649024,1739981456881,-501.88333216,0.00013333,2]
[353649025,1739981456890,-500.0,0.00013333,2]
[353649026,1739981456900,-578.97,0.00013333,2]
[353649027,1739981456909,-1547.71,0.00013333,2]
[353649028,1739981456919,-500.0,0.00013333,2]
[353649029,1739981456929,-1667.54,0.00013333,2]
[353649030,1739981456939,-500.0,0.00013333,2]
[353649031,1739981456949,-500.0,0.00013333,2]
[353649032,1739981456959,-500.0,0.00013333,2]
[353649033,1739981456968,-679.7,0.00013333,2]
[353649034,1739981456978,-500.0,0.00013333,2]
[353649035,1739981456988,-512.51,0.00013333,2]
[353649036,1739981456997,-672.54,0.00013333,2]
[353649037,1739981457007,-771.34,0.00013333,2]
[353649038,1739981457016,-1642.33,0.00013333,2]
[353649039,1739981457026,-623.02,0.00013333,2]
[353649040,1739981457035,-500.0,0.00013333,2]
[353649041,1739981457044,-700.88,0.00013333,2]
[353649042,1739981457053,-1763.07,0.00013333,2]
[353649043,1739981457063,-1058.8,0.00013333,2]
[353649044,1739981457072,-168.186444,0.00013333,2]
[353649045,1739981457081,-500.0,0.00013333,2]
[353649046,1739981457091,-500.0,0.00013333,2]
[353649047,1739981457100,-600.7,0.00013333,2]
[353649048,1739981457110,-500.0,0.00013333,2]
[353649049,1739981457120,-1534.82,0.00013333,2]
[353649050,1739981457129,-1442.91,0.00013333,2]
[353649051,1739981457138,-168.186444,0.00013333,2]
[353649052,1739981457147,-745.68,0.00013333,2]
[353649053,1739981457156,-838.32,0.00013333,2]
[353649054,1739981457167,-500.0,0.00013333,2]
[353649055,1739981457176,-513.56641599,0.00013333,2]
[353649056,1739981457186,-500.0,0.00013333,2]
[353649057,1739981457196,-1071.12,0.00013333,2]
[353649058,1739981457205,-586.27,0.00013333,2]
[353649059,1739981457215,-500.0,0.00013333,2]
[353649060,1739981457228,-1123.84,0.00013333,2]
[353649061,1739981457237,-426.89135905,0.00013333,2]
[353649062,1739981457247,-2348.96,0.00013333,2]
[353649063,1739981457256,-500.0,0.00013333,2]
[353649064,1739981457266,-1050.15,0.00013333,2]
[353649065,1739981457276,-881.06,0.00013333,2]
[353649066,1739981457285,-500.0,0.00013333,2]
[353649067,1739981457294,-500.0,0.00013333,2]
[353649068,1739981457304,-500.0,0.00013333,2]
[353649069,1739981457315,-500.0,0.00013333,2]
[353649070,1739981457324,-500.0,0.00013333,2]
[353649071,1739981457334,-500.0,0.00013333,2]
[353649072,1739981457343,-500.0,0.00013333,2]
[353649073,1739981457352,-1721.94,0.00013333,2]
[353649074,1739981457361,-500.0,0.00013333,2]
[353649075,1739981457371,-500.0,0.00013333,2]
[353649076,1739981457381,-500.0,0.00013333,2]
[353649077,1739981457391,-1774.14,0.00013333,2]
[353649078,1739981457400,-500.0,0.00013333,2]
[353649079,1739981457410,-2626.88,0.00013333,2]
[353649080,1739981457419,-500.0,0.00013333,2]
[353649081,1739981457428,-4378.38,0.00013333,2]
[353649082,1739981457437,-4564.78,0.00013333,2]
[353649083,1739981457447,-500.0,0.00013333,2]
[353649084,1739981457458,-500.0,0.00013333,2]
[353649085,1739981457467,-500.0,0.00013333,2]
[353649086,1739981457477,-1219.89,0.00013333,2]
[353649087,1739981457487,-500.0,0.00013333,2]
[353649088,1739981457497,-837.92,0.00013333,2]
[353649089,1739981457507,-1220.63,0.00013333,2]
[353649090,1739981457517,-705.79,0.00013333,2]
[353649091,1739981457526,-750.7,0.00013333,2]
[353649092,1739981457536,-2297.88,0.00013333,2]
[353649093,1739981457546,-1406.06,0.00013333,2]
[353649094,1739981457556,-598.52,0.00013333,2]
[353649095,1739981457566,-500.0,0.00013333,2]
[353649096,1739981457576,-4306.96,0.00013333,2]
[353649097,1739981457585,-500.0,0.00013333,2]
[353649098,1739981457594,-850.64,0.00013333,2]
[353649099,1739981457604,-1548.92,0.00013333,2]
[353649100,1739981457614,-4046.57,0.00013333,2]
[353649101,1739981457623,-500.0,0.00013333,2]
[353649102,1739981457633,-500.0,0.00013333,2]
[353649103,1739981457642,-500.0,0.00013333,2]
[353649104,1739981457651,-1817.06,0.00013333,2]
[353649105,1739981457660,-151.0,0.00013333,2]
[353649106,1739981457670,-579.94,0.00013333,2]
[353649107,1739981457680,-537.41,0.00013333,2]
[353649108,1739981457689,-1393.67,0.00013333,2]
[353649109,1739981457699,-3247.97,0.00013333,2]
[353649110,1739981457707,-500.0,0.00013333,2]
[353649111,1739981457717,-3207.33,0.00013333,2]
[353649112,1739981457727,-500.0,0.00013333,2]
[353649113,1739981457736,-502.80383403,0.00013333,2]
[353649114,1739981457746,-500.0,0.00013333,2]
[353649115,1739981457755,-500.0,0.00013333,2]
[353649116,1739981457765,-1068.57,0.00013333,2]
[353649117,1739981457775,-500.0,0.00013333,2]
[353649118,1739981457784,-3221.83,0.00013333,2]
[353649119,1739981457795,-500.0,0.00013333,2]
[353649120,1739981457804,-500.0,0.00013333,2]
[353649121,1739981457813,-509.24,0.00013333,2]
[353649122,1739981457823,-1032.47,0.00013333,2]
[353649123,1739981457832,-943.7,0.00013333,2]
[353649124,1739981457842,-562.88688426,0.00013333,2]
[353649125,1739981457851,-540.64877091,0.00013333,2]
[353649126,1739981457860,-2527.73,0.00013333,2]
[353649127,1739981457870,-561.48,0.00013333,2]
[353649128,1739981457879,-500.0,0.00013333,2]
[353649129,1739981457889,-1480.58,0.00013333,2]
[353649130,1739981457898,-2707.66,0.00013333,2]
[353649131,1739981457907,-500.0,0.00013333,2]
[353649132,1739981457916,-500.0,0.00013333,2]
[353649133,1739981457926,-3022.84,0.00013333,2]
[353649134,1739981457935,-705.48,0.00013333,2]
[353649135,1739981457944,-500.0,0.00013333,2]
[353649136,1739981457953,-500.0,0.00013333,2]
[353649137,1739981457963,-1400.94,0.00013333,2]
[353649138,1739981457972,-500.0,0.00013333,2]
[353649139,1739981457982,-1048.08,0.00013333,2]
[353649140,1739981457992,-523.15,0.00013333,2]
[353649141,1739981458001,-737.53,0.00013333,2]
[353649142,1739981458011,-500.0,0.00013333,2]
[353649143,1739981458020,-934.73,0.00013333,2]
[353649144,1739981458029,-500.0,0.00013333,2]
[353649145,1739981458038,-164.85384112,0.00013333,2]
[353649146,1739981458047,-591.76,0.00013333,2]
[353649147,1739981458057,-151.0,0.00013333,2]
[353649148,1739981458066,-151.0,0.00013333,2]
[353649149,1739981458075,-2935.54,0.00013333,2]
[353649150,1739981458085,-500.0,0.00013333,2]
[353649151,1739981458094,-497.165442,0.00013333,2]
[353649152,1739981458103,-919.89,0.00013333,2]
[353649153,1739981458113,-576.38905648,0.00013333,2]
[353649154,1739981458121,-151.0,0.00013333,2]
[353649155,1739981458130,-500.0,0.00013333,2]
[353649156,1739981458140,-500.0,0.00013333,2]
[353649157,1739981458149,-151.0,0.00013333,2]
[353649158,1739981458158,-1631.66,0.00013333,2]
[353649159,1739981458170,-1630.74,0.00013333,2]
[353649160,1739981458179,-1488.16,0.00013333,2]
[353649161,1739981458188,-500.0,0.00013333,2]
[353649162,1739981458197,-438.95729888,0.00013333,2]
[353649163,1739981458207,-151.0,0.00013333,2]
[353649164,1739981458217,-500.0,0.00013333,2]
[353649165,1739981458230,-853.84,0.00013333,2]
[353649166,1739981458239,-500.0,0.00013333,2]
[353649167,1739981458247,-531.89,0.00013333,2]
[353649168,1739981458256,-550.84,0.00013333,2]
[353649169,1739981458268,-169.807755,0.00013333,2]
[353649170,1739981458277,-169.807755,0.00013333,2]
[353649171,1739981458287,-180.80812981,0.00013333,2]
[353649172,1739981458296,-500.0,0.00013333,2]
[353649173,1739981458306,-500.0,0.00013333,2]
[353649174,1739981458317,-169.807755,0.00013333,2]
[353649175,1739981458407,-198.81996306,0.00013333,2]
[353649176,1739981458416,-169.807755,0.00013333,2]
[353649177,1739981458426,-500.0,0.00013333,2]
[353649178,1739981458435,-1229.87,0.00013333,2]
[353649179,1739981458444,-2787.49,0.00013333,2]
[353649180,1739981458453,-241.92573238,0.00013333,2]
[353649181,1739981458462,-500.0,0.00013333,2]
[353649182,1739981458472,-735.14,0.00013333,2]
[353649183,1739981458481,-522.61845911,0.00013333,2]
[353649184,1739981458491,-500.0,0.00013333,2]
[353649185,1739981458500,-500.0,0.00013333,2]
[353649186,1739981458510,-2404.94,0.00013333,2]
[353649187,1739981458519,-502.02589821,0.00013333,2]
[353649188,1739981458528,-500.0,0.00013333,2]
[353649189,1739981458536,-500.0,0.00013333,2]
[353649190,1739981458544,-634.9669587,0.00013333,2]
[353649191,1739981458553,-500.0,0.00013333,2]
[353649192,1739981458563,-198.208733,0.00013333,2]
[353649193,1739981458576,-198.208733,0.00013333,2]
[353649194,1739981458586,-348.0913457,0.00013333,2]
[353649195,1739981458594,-500.0,0.00013333,2]
[353649196,1739981458602,-1357.32,0.00013333,2]
[353649197,1739981458612,-508.44361638,0.00013333,2]
[353649198,1739981458622,-291.47473529,0.00013333,2]
[353649199,1739981458631,-868.88,0.00013333,2]
[353649200,1739981458641,-658.88,0.00013333,2]
[353649201,1739981458651,-515.01872518,0.00013333,2]
[353649202,1739981458660,-198.208733,0.00013333,2]
[353649203,1739981458669,-651.71,0.00013333,2]
[353649204,1739981458679,-500.0,0.00013333,2]
[353649205,1739981458688,-198.208733,0.00013333,2]
[353649206,1739981458698,-651.58,0.00013333,2]
[353649207,1739981458708,-221.46292182,0.00013333,2]
[353649208,1739981458717,-500.0,0.00013333,2]
[353649209,1739981458727,-500.0,0.00013333,2]
[353649210,1739981458736,-500.0,0.00013333,2]
[353649211,1739981458746,-1016.2,0.00013333,2]
[353649212,1739981458756,-500.0,0.00013333,2]
[353649213,1739981458765,-1118.0,0.00013333,2]
[353649214,1739981458775,-500.0,0.00013333,2]
[353649215,1739981458785,-1202.47,0.00013333,2]
[353649216,1739981458794,-151.0,0.00013334,2]
[353649217,1739981458803,-151.0,0.00013334,2]
[353649218,1739981458813,-298.197743,0.00013334,2]
[353649219,1739981458827,-298.197743,0.00013334,2]
[353649220,1739981458837,-6695.260811,0.00013334,2]
[353649221,1739981458846,-1207.34,0.00013334,2]
[353649222,1739981458855,-151.0,0.00013334,2]
[353649223,1739981458864,-6695.260811,0.00013334,2]
[353649224,1739981458873,-1567.205065,0.00013334,2]
[353649225,1739981458887,-1567.205065,0.00013334,2]
[353649226,1739981458897,-1505.77,0.00013334,2]
[353649227,1739981458906,-1067.17,0.00013334,2]
[353649228,1739981458916,-500.0,0.00013334,2]
[353649229,1739981458926,-500.0,0.00013334,2]
[353649230,1739981458935,-1113.19,0.00013334,2]
[353649231,1739981458944,-209.850624,0.00013334,2]
[353649232,1739981458953,-209.850624,0.00013334,2]
[353649233,1739981458963,-216.497913,0.00013334,2]
[353649234,1739981458972,-500.0,0.00013334,2]
[353649235,1739981458982,-503.69199279,0.00013334,2]
[353649236,1739981458991,-216.497913,0.00013334,2]
[353649237,1739981459000,-911.21,0.00013334,2]
[353649238,1739981459010,-651.34,0.00013334,2]
[353649239,1739981459020,-1031.71,0.00013334,2]
[353649240,1739981459029,-759.85,0.00013334,2]
[353649241,1739981459039,-1162.39,0.00013334,2]
[353649242,1739981459048,-1299.76,0.00013334,2]
[353649243,1739981459057,-500.0,0.00013334,2]
[353649244,1739981459067,-500.0,0.00013334,2]
[353649245,1739981459076,-151.0,0.00013334,2]
[353649246,1739981459086,-151.0,0.00013334,2]
[353649247,1739981459095,-849.12,0.00013334,2]
[353649248,1739981459104,-615.67,0.00013334,2]
[353649249,1739981459114,-1109.7,0.00013334,2]
[353649250,1739981459124,-665.19,0.00013334,2]
[353649251,1739981459133,-500.0,0.00013334,2]
[353649252,1739981459143,-172.272058,0.00013334,2]
[353649253,1739981459153,-172.272058,0.00013334,2]
[353649254,1739981459164,-172.272058,0.00013334,2]
[353649255,1739981459174,-172.272058,0.00013334,2]
[353649256,1739981459185,-860.99,0.00013334,2]
[353649257,1739981459196,-1270.22,0.00013334,2]
[353649258,1739981459206,-1751.06,0.00013334,2]
[353649259,1739981459220,-797.36,0.00013334,2]
[353649260,1739981459240,-758.76,0.00013334,2]
[353649261,1739981459252,-500.0,0.00013334,2]
[353649262,1739981459261,-313.669237,0.00013334,2]
[353649263,1739981459271,-313.669237,0.00013334,2]
[353649264,1739981459280,-813.75,0.00013334,2]
[353649265,1739981459290,-313.669237,0.00013334,2]
[353649266,1739981459299,-313.669237,0.00013334,2]
[353649267,1739981459308,-1833.76,0.00013334,2]
[353649268,1739981459318,-1190.62,0.00013334,2]
[353649269,1739981459327,-781.560198,0.00013334,2]
[353649270,1739981459337,-781.560198,0.00013334,2]
[353649271,1739981459347,-1309.09,0.00013334,2]
[353649272,1739981459357,-781.560198,0.00013334,2]
[353649273,1739981459366,-781.560198,0.00013334,2]
[353649274,1739981459375,-671.96,0.00013334,2]
[353649275,1739981459385,-1059.62,0.00013334,2]
[353649276,1739981459394,-804.42,0.00013334,2]
[353649277,1739981459403,-771.67,0.00013334,2]
[353649278,1739981459412,-500.0,0.00013334,2]
[353649279,1739981459421,-512.14,0.00013334,2]
[353649280,1739981459431,-1003.49,0.00013334,2]
[353649281,1739981459440,-151.0,0.00013334,2]
[353649282,1739981459449,-1162.25,0.00013334,2]
[353649283,1739981459458,-960.4,0.00013334,2]
[353649284,1739981459467,-151.0,0.00013334,2]
[353649285,1739981459476,-500.0,0.00013334,2]
[353649286,1739981459486,-151.0,0.00013334,2]
[353649287,1739981459496,-500.0,0.00013334,2]
[353649288,1739981459505,-1713.19,0.00013334,2]
[353649289,1739981459515,-787.35,0.00013334,2]
[353649290,1739981459524,-500.0,0.00013334,2]
[353649291,1739981459533,-500.0,0.00013334,2]
[353649292,1739981459543,-500.0,0.00013334,2]
[353649293,1739981459551,-500.0,0.00013334,2]
[353649294,1739981459561,-500.0,0.00013334,2]
[353649295,1739981459572,-459.8162,0.00013334,2]
[353649296,1739981459582,-1673.22,0.00013334,2]
[353649297,1739981459592,-292.09013223,0.00013334,2]
[353649298,1739981459602,-1201.88,0.00013334,2]
[353649299,1739981459611,-1529.79,0.00013334,2]
[353649300,1739981459621,-1923.19,0.00013334,2]
[353649301,1739981459630,-1454.02,0.00013334,2]
[353649302,1739981459639,-1769.83,0.00013334,2]
[353649303,1739981459648,-846.13,0.00013334,2]
[353649304,1739981459658,-527.23,0.00013334,2]
[353649305,1739981459666,-168.186444,0.00013334,2]
[353649306,1739981459676,-168.186444,0.00013334,2]
[353649307,1739981459692,-1387.3,0.00013334,2]
[353649308,1739981459702,-500.0,0.00013334,2]
[353649309,1739981459712,-1073.32,0.00013334,2]
[353649310,1739981459722,-500.0,0.00013334,2]
[353649311,1739981459732,-1370.88,0.00013334,2]
[353649312,1739981459742,-500.0,0.00013334,2]
[353649313,1739981459753,-1188.82,0.00013334,2]
[353649314,1739981459763,-954.65,0.00013334,2]
[353649315,1739981459773,-1165.0,0.00013334,2]
[353649316,1739981459783,-1053.26,0.00013334,2]
[353649317,1739981459792,-1402.42,0.00013334,2]
[353649318,1739981459802,-151.0,0.00013334,2]
[353649319,1739981459812,-1502.66,0.00013334,2]
[353649320,1739981459823,-1458.59,0.00013334,2]
[353649321,1739981459833,-1883.09,0.00013334,2]
[353649322,1739981459843,-500.0,0.00013334,2]
[353649323,1739981459854,-500.0,0.00013334,2]
[353649324,1739981459863,-151.0,0.00013334,2]
[353649325,1739981459874,-540.26,0.00013334,2]
[353649326,1739981459883,-151.0,0.00013334,2]
[353649327,1739981459893,-151.0,0.00013334,2]
[353649328,1739981459904,-1090.36,0.00013334,2]
[353649329,1739981459914,-292.510272,0.00013334,2]
[353649330,1739981459924,-169.807755,0.00013334,2]
[353649331,1739981459935,-651.0,0.00013334,2]
[353649332,1739981459944,-169.807755,0.00013334,2]
[353649333,1739981459953,-590.33,0.00013334,2]
[353649334,1739981459963,-1041.61,0.00013334,2]
[353649335,1739981459972,-198.208733,0.00013334,2]
[353649336,1739981459982,-198.208727,0.00013334,2]
[353649337,1739981459992,-803.85,0.00013334,2]
[353649338,1739981460002,-1628.61,0.00013334,2]
[353649339,1739981460012,-300.0,0.00013335,2]
[353649340,1739981460022,-300.0,0.00013335,2]
[353649341,1739981460031,-1721.94,0.00013335,2]
[353649342,1739981460042,-151.0,0.00013336,2]
[353649343,1739981460053,-151.0,0.00013336,2]
[353649344,1739981460064,-151.0,0.00013336,2]
[353649345,1739981460077,-151.0,0.00013336,2]
[353649346,1739981460088,-867.43,0.00013336,2]
[353649347,1739981460098,-151.0,0.00013336,2]
[353649348,1739981460108,-503.90275137,0.00013336,2]